Workbook

Sheet levelConfig
A1: ID | B1: #Name | C1: DiceNum | D1: Invite | E1: Ratio | F1: DiceLimit | G1: Rule1 | H1: Rule2 | I1: Rule3 | J1: Rule4
A2: int32 | B2: string | C2: int32 | D2: int32 | E2: int32 | F2: int32 | G2: int32 | H2: int32 | I2: int32 | J2: int32
A4: #level | B4: 等级 | C4: 投骰子数量 | D4: 邀请好友数量 | E4: 倍率 | F4: 额外骰子上限 | G4: 规则1按大小 | H4: 规则2按对子 | I4: 规则3其他豹子 | J4: 规则4豹子111/666
A5: 1 | C5: 0 | D5: 0 | E5: 1 | F5: 150 | G5: 100 | H5: 600 | I5: 2600 | J5: 5000
A6: 2 | C6: 30 | D6: 0 | E6: 2 | F6: 30 | G6: 100 | H6: 600 | I6: 2600 | J6: 5000
A7: 3 | C7: 60 | D7: 0 | E7: 3 | F7: 30 | G7: 100 | H7: 600 | I7: 2600 | J7: 5000
A8: 4 | C8: 120 | D8: 0 | E8: 4 | F8: 30 | G8: 100 | H8: 600 | I8: 2600 | J8: 5000
A9: 5 | C9: 240 | D9: 1 | E9: 5 | F9: 30 | G9: 100 | H9: 600 | I9: 2600 | J9: 5000
A10: 6 | C10: 720 | D10: 3 | E10: 6 | F10: 30 | G10: 100 | H10: 600 | I10: 2600 | J10: 5000
A11: 7 | C11: 2160 | D11: 5 | E11: 7 | F11: 30 | G11: 100 | H11: 600 | I11: 2600 | J11: 5000
A12: 8 | C12: 6480 | D12: 5 | E12: 8 | F12: 30 | G12: 100 | H12: 600 | I12: 2600 | J12: 5000
A13: 9 | C13: 32400 | D13: 5 | E13: 9 | F13: 30 | G13: 100 | H13: 600 | I13: 2600 | J13: 5000
A14: 10 | C14: 162000 | D14: 10 | E14: 10 | F14: 30 | G14: 100 | H14: 600 | I14: 2600 | J14: 5000

Sheet #Sheet1
A1: 基础假设
A2: 等级 | B2: 骰子上限 | C2: 每日骰子总数
A3: 1 | B3: 150 | C3: =B3*3 -> 450
A4: 2 | B4: 180 | C4: =B4*3 -> 540
A5: 3 | B5: 210 | C5: 630
A6: 4 | B6: 240 | C6: 720
A7: 5 | B7: 270 | C7: 810
A8: 6 | B8: 300 | C8: 900
A9: 7 | B9: 330 | C9: 990
A10: 8 | B10: 360 | C10: 1080
A11: 9 | B11: 390 | C11: 1170
A12: 10 | B12: 420 | C12: 1260
A14: 现在升级规则
A15: 等级 | B15: 升级所需骰子 | C15: 对应时间
A16: 2 | B16: 30 | C16: =B16/C3 -> 0.06666666667
A17: 3 | B17: =B16*2 -> 60 | C17: =B17/C4 -> 0.1111111111
A18: 4 | B18: =B17*2 -> 120 | C18: 0.1904761905
A19: 5 | B19: 240 | C19: 0.3333333333
A20: 6 | B20: =B19*3 -> 720 | C20: 0.8888888889
A21: 7 | B21: =B20*3 -> 2160 | C21: 2.4
A22: 8 | B22: =B21*3 -> 6480 | C22: 6.545454545
A23: 9 | B23: =B22*5 -> 32400 | C23: 30
A24: 10 | B24: =B23*5 -> 162000 | C24: 138.4615385
A26: 升级总天数 | B26: =SUM(C16:C24) -> 178.9974692
